fUSD/lending_fUSD_20240403
["ID","MTS","AMOUNT","RATE_DAILY","PERIOD"]
[321430680,1712184651771,-1226.04,0.00054794,120]
[321430681,1712184651781,-500.0,0.00054794,120]
[321430682,1712184651791,-481.9493303,0.00054794,120]
[321430683,1712184651799,-500.0,0.00054794,120]
[321430684,1712184651809,-500.0,0.00054794,120]
[321430685,1712184651819,-658.04,0.00054794,120]
[321430686,1712184651831,-715.45,0.00054794,120]
[321430687,1712184651840,-500.0,0.00054794,120]
[321430688,1712184651850,-500.0,0.00054794,120]
[321430689,1712184651860,-751.45,0.00054794,120]
[321430690,1712184651869,-1113.91,0.00054794,120]
[321430691,1712184651879,-500.0,0.00054794,120]
[321430692,1712184651889,-500.0,0.00054794,120]
[321430693,1712184651899,-500.0,0.00054794,120]
[321430694,1712184651909,-500.0,0.00054794,120]
[321430695,1712184651919,-1753.92,0.00054794,120]
[321430696,1712184651928,-500.0,0.00054794,120]
[321430697,1712184651938,-500.0,0.00054794,120]
[321430698,1712184651946,-500.0,0.00054794,120]
[321430699,1712184651956,-500.0,0.00054794,120]
[321430700,1712184651966,-500.0,0.00054794,120]
[321430701,1712184651975,-500.0,0.00054794,120]
[321430702,1712184651984,-638.32,0.00054794,120]
[321430703,1712184651994,-500.0,0.00054794,120]
[321430704,1712184652003,-500.0,0.00054794,120]
[321430705,1712184652013,-500.0,0.00054794,120]
[321430706,1712184652022,-880.91,0.00054794,120]
[321430707,1712184652032,-500.0,0.00054794,120]
[321430708,1712184652041,-925.28,0.00054794,120]
[321430709,1712184652051,-500.0,0.00054794,2]
[321430710,1712184652060,-500.0,0.00054794,120]
[321430711,1712184652069,-500.0,0.00054794,120]
[321430712,1712184652079,-500.0,0.00054794,120]
[321430713,1712184652088,-500.0,0.00054794,120]
[321430714,1712184652098,-500.0,0.00054794,120]
[321430715,1712184652107,-500.0,0.00054794,120]
[321430716,1712184652117,-500.0,0.00054794,120]
[321430717,1712184652126,-500.0,0.00054794,120]
[321430718,1712184652135,-938.87,0.00054794,120]
[321430719,1712184652146,-500.0,0.00054794,120]
[321430720,1712184652157,-500.0,0.00054794,120]
[321430721,1712184652166,-809.69,0.00054794,120]
[321430722,1712184652176,-502.21007779,0.00054794,120]
[321430723,1712184652186,-820.25,0.00054794,120]
[321430724,1712184652196,-613.92,0.00054794,120]
[321430725,1712184652206,-500.0,0.00054794,120]
[321430726,1712184652216,-500.0,0.00054794,120]
[321430727,1712184652226,-1528.39,0.00054794,120]
[321430728,1712184652235,-500.0,0.00054794,120]
[321430729,1712184652245,-500.0,0.00054794,120]
[321430730,1712184652254,-1175.94,0.00054794,120]
[321430731,1712184652264,-1868.47,0.00054794,120]
[321430732,1712184652274,-734.72,0.00054794,120]
[321430733,1712184652286,-500.0,0.00054794,120]
[321430734,1712184652296,-508.14750368,0.00054794,120]
[321430735,1712184652305,-500.0,0.00054794,120]
[321430736,1712184652314,-1000.0,0.00054794,120]
[321430737,1712184652323,-675.22,0.00054794,120]
[321430738,1712184652332,-501.84222635,0.00054794,120]
[321430739,1712184652342,-791.95,0.00054794,120]
[321430740,1712184652351,-500.0,0.00054794,120]
[321430741,1712184652362,-500.0,0.00054794,120]
[321430742,1712184652372,-1078.58,0.00054794,120]
[321430743,1712184652381,-1374.06,0.00054794,120]
[321430744,1712184652390,-500.0,0.00054794,120]
[321430745,1712184652399,-500.0,0.00054794,120]
[321430746,1712184652409,-507.78656315,0.00054794,120]
[321430747,1712184652418,-515.67749522,0.00054794,120]
[321430748,1712184652427,-500.0,0.00054794,120]
[321430749,1712184652436,-854.0,0.00054794,120]
[321430750,1712184652445,-500.0,0.00054794,120]
[321430751,1712184652454,-531.92663094,0.00054794,120]
[321430752,1712184652463,-500.0,0.00054794,120]
[321430753,1712184652473,-670.32,0.00054794,120]
[321430754,1712184652481,-500.0,0.00054794,120]
[321430755,1712184652491,-507.91153287,0.00054794,120]
[321430756,1712184652500,-500.34740674,0.00054794,120]
[321430757,1712184652510,-500.0,0.00054794,120]
[321430758,1712184652519,-1170.92,0.00054794,120]
[321430759,1712184652528,-1248.45,0.00054794,120]
[321430760,1712184652537,-529.02666222,0.00054794,120]
[321430761,1712184652547,-500.0,0.00054794,120]
[321430762,1712184652557,-1117.67,0.00054794,30]
[321430763,1712184652568,-515.62287532,0.00054794,120]
[321430764,1712184652578,-600.0,0.00054794,2]
[321430765,1712184652588,-500.0,0.00054794,120]
[321430766,1712184652598,-675.44,0.00054794,120]
[321430767,1712184652607,-500.0,0.00054794,120]
[321430768,1712184652617,-500.0,0.00054794,120]
[321430769,1712184652626,-507.66384445,0.00054794,120]
[321430770,1712184652637,-585.36,0.00054794,120]
[321430771,1712184652647,-517.56,0.00054794,120]
[321430772,1712184652658,-504.12993072,0.00054794,120]
[321430773,1712184652667,-514.10252397,0.00054794,120]
[321430774,1712184652678,-1079.11,0.00054794,120]
[321430775,1712184652688,-1677.54,0.00054794,120]
[321430776,1712184652697,-500.0,0.00054794,120]
[321430777,1712184652707,-500.0,0.00054794,120]
[321430778,1712184652717,-500.0,0.00054794,120]
[321430779,1712184652725,-500.0,0.00054794,120]
[321430780,1712184652736,-808.59,0.00054794,120]
[321430781,1712184652745,-1135.01,0.00054794,120]
[321430782,1712184652755,-500.0,0.00054794,120]
[321430783,1712184652765,-500.0,0.00054794,120]
[321430784,1712184652775,-555.42,0.00054794,120]
[321430785,1712184652785,-500.0,0.00054794,120]
[321430786,1712184652794,-843.85,0.00054794,120]
[321430787,1712184652805,-826.77,0.00054794,120]
[321430788,1712184652814,-500.0,0.00054794,120]
[321430789,1712184652823,-500.0,0.00054794,120]
[321430790,1712184652833,-1259.94,0.00054794,120]
[321430791,1712184652844,-513.93561521,0.00054794,120]
[321430792,1712184652854,-505.29988277,0.00054794,120]
[321430793,1712184652864,-500.0,0.00054794,120]
[321430794,1712184652873,-508.43084077,0.00054794,120]
[321430795,1712184652882,-1196.34,0.00054794,120]
[321430796,1712184652891,-509.7830299,0.00054794,120]
[321430797,1712184652903,-500.0,0.00054794,120]
[321430798,1712184652912,-500.0,0.00054794,120]
[321430799,1712184652922,-500.0,0.00054794,120]
[321430800,1712184652932,-503.56489493,0.00054794,120]
[321430801,1712184652941,-1227.92,0.00054794,120]
[321430802,1712184652951,-1112.56,0.00054794,120]
[321430803,1712184652962,-506.14026944,0.00054794,120]
[321430804,1712184652973,-1264.95,0.00054794,120]
[321430805,1712184652984,-521.9581491,0.00054794,120]
[321430806,1712184652994,-500.0,0.00054794,120]
[321430807,1712184653006,-500.0,0.00054794,120]
[321430808,1712184653092,-515.21200817,0.00054794,120]
[321430809,1712184653101,-509.12687492,0.00054794,120]
[321430810,1712184653110,-500.0,0.00054794,120]
[321430811,1712184653121,-500.0,0.00054794,120]
[321430812,1712184653132,-1166.52,0.00054794,120]
[321430813,1712184653142,-551.7481468,0.00054794,120]
[321430814,1712184653154,-500.0,0.00054794,2]
[321430815,1712184653163,-516.69316658,0.00054794,120]
[321430816,1712184653174,-536.77869083,0.00054794,120]
[321430817,1712184653186,-1657.99,0.00054794,30]
[321430818,1712184653197,-500.0,0.00054794,120]
[321430819,1712184653206,-1387.24,0.00054794,120]
[321430820,1712184653215,-546.4803337,0.00054794,120]
[321430821,1712184653225,-500.0,0.00054794,120]
[321430822,1712184653234,-514.14780467,0.00054794,120]
[321430823,1712184653244,-500.0,0.00054794,120]
[321430824,1712184653254,-500.0,0.00054794,120]
[321430825,1712184653264,-500.0,0.00054794,120]
[321430826,1712184653274,-500.0,0.00054794,120]
[321430827,1712184653290,-1149.21,0.00054794,120]
[321430828,1712184653301,-511.24,0.00054794,120]
[321430829,1712184653310,-500.0,0.00054794,120]
[321430830,1712184653319,-500.0,0.00054794,120]
[321430831,1712184653329,-500.0,0.00054794,120]
[321430832,1712184653338,-835.03,0.00054794,120]
[321430833,1712184653347,-1077.9,0.00054794,120]
[321430834,1712184653356,-1009.09,0.00054794,60]
[321430835,1712184653366,-500.0,0.00054794,120]
[321430836,1712184653375,-517.56558449,0.00054794,120]
[321430837,1712184653384,-509.67767544,0.00054794,120]
[321430838,1712184653393,-749.89,0.00054794,120]
[321430839,1712184653404,-1554.15,0.00054794,120]
[321430840,1712184653413,-831.64,0.00054794,120]
[321430841,1712184653422,-1288.29,0.00054794,120]
[321430842,1712184653431,-508.30182175,0.00054794,120]
[321430843,1712184653440,-500.0,0.00054794,120]
[321430844,1712184653449,-500.0,0.00054794,120]
[321430845,1712184653458,-539.18,0.00054794,120]
[321430846,1712184653467,-1597.03,0.00054794,120]
[321430847,1712184653476,-507.38377001,0.00054794,120]
[321430848,1712184653485,-958.86,0.00054794,120]
[321430849,1712184653494,-500.0,0.00054794,120]
[321430850,1712184653504,-1543.8,0.00054794,120]
[321430851,1712184653514,-500.0,0.00054794,120]
[321430852,1712184653523,-500.0,0.00054794,120]
[321430853,1712184653532,-500.0,0.00054794,120]
[321430854,1712184653542,-500.0,0.00054794,120]
[321430855,1712184653551,-926.27,0.00054794,120]
[321430856,1712184653560,-500.0,0.00054794,120]
[321430857,1712184653569,-500.0,0.00054794,120]
[321430858,1712184653578,-500.0,0.00054794,120]
[321430859,1712184653587,-799.72,0.00054794,120]
[321430860,1712184653596,-1275.42,0.00054794,120]
[321430861,1712184653604,-500.0,0.00054794,120]
[321430862,1712184653613,-500.0,0.00054794,120]
[321430863,1712184653622,-515.59669646,0.00054794,120]
[321430864,1712184653631,-500.0,0.00054794,120]
[321430865,1712184653640,-500.0,0.00054794,120]
[321430866,1712184653651,-1581.02,0.00054794,120]
[321430867,1712184653660,-500.0,0.00054794,120]
[321430868,1712184653670,-500.0,0.00054794,120]
[321430869,1712184653681,-500.0,0.00054794,120]
[321430870,1712184653692,-500.0,0.00054794,120]
[321430871,1712184653701,-500.0,0.00054794,120]
[321430872,1712184653712,-504.7156112,0.00054794,120]
[321430873,1712184653721,-169.84024934,0.00054794,120]
[321430874,1712184653732,-500.0,0.00054794,120]
[321430875,1712184653740,-505.4501326,0.00054794,120]
[321430876,1712184653749,-500.0,0.00054794,120]
[321430877,1712184653759,-1179.39,0.00054794,120]
[321430878,1712184653768,-500.0,0.00054794,120]
[321430879,1712184653777,-500.0,0.00054794,120]
[321430880,1712184653786,-1336.3,0.00054794,120]
[321430881,1712184653795,-508.72387683,0.00054794,120]
[321430882,1712184653804,-500.0,0.00054794,120]
[321430883,1712184653813,-500.0,0.00054794,120]
[321430884,1712184653822,-500.0,0.00054794,120]
[321430885,1712184653831,-1872.46,0.00054794,120]
[321430886,1712184653840,-500.0,0.00054794,120]
[321430887,1712184653849,-985.34,0.00054794,120]
[321430888,1712184653858,-659.49,0.00054794,120]
[321430889,1712184653867,-500.0,0.00054794,120]
[321430890,1712184653876,-946.06237162,0.00054794,120]
[321430891,1712184653885,-500.0,0.00054794,120]
[321430892,1712184653894,-508.64,0.00054794,120]
[321430893,1712184653904,-1702.42,0.00054794,120]
[321430894,1712184653914,-1258.58,0.00054794,120]
[321430895,1712184653923,-502.14004124,0.00054794,120]
[321430896,1712184653932,-506.604401,0.00054794,120]
[321430897,1712184653941,-500.0,0.00054794,120]
[321430898,1712184653951,-500.0,0.00054794,120]
[321430899,1712184653962,-526.52666836,0.00054794,120]
[321430900,1712184653971,-509.1692284,0.00054794,120]
[321430901,1712184653981,-506.72465766,0.00054794,120]
[321430902,1712184653992,-705.27,0.00054794,120]
[321430903,1712184654001,-500.08896784,0.00054794,120]
[321430904,1712184654010,-624.31,0.00054794,120]
[321430905,1712184654020,-500.0,0.00054794,120]
[321430906,1712184654029,-500.0,0.00054794,120]
[321430907,1712184654039,-500.0,0.00054794,120]
[321430908,1712184654047,-500.0,0.00054794,120]
[321430909,1712184654057,-633.42,0.00054794,120]
[321430910,1712184654067,-500.0,0.00054794,120]
[321430911,1712184654076,-989.68,0.00054794,120]
[321430912,1712184654085,-500.0,0.00054794,120]
[321430913,1712184654094,-514.68298953,0.00054794,120]
[321430914,1712184654104,-661.44,0.00054794,120]
[321430915,1712184654114,-500.0,0.00054794,120]
[321430916,1712184654123,-500.0,0.00054794,120]
[321430917,1712184654132,-500.0,0.00054794,120]
[321430918,1712184654141,-740.22,0.00054794,120]
[321430919,1712184654151,-500.0,0.00054794,120]
[321430920,1712184654160,-509.30792695,0.00054794,120]
[321430921,1712184654170,-1612.79,0.00054794,120]
[321430922,1712184654179,-500.0,0.00054794,120]
[321430923,1712184654187,-500.0,0.00054794,120]
[321430924,1712184654197,-500.0,0.00054794,120]
[321430925,1712184654206,-500.0,0.00054794,120]
[321430926,1712184654215,-500.0,0.00054794,120]
[321430927,1712184654224,-500.0,0.00054794,120]
[321430928,1712184654233,-500.0,0.00054794,120]
[321430929,1712184654243,-618.89,0.00054794,120]
[321430930,1712184654251,-584.36788201,0.00054794,120]
[321430931,1712184654262,-508.68341614,0.00054794,120]
[321430932,1712184654272,-500.0,0.00054794,120]
[321430933,1712184654282,-500.0,0.00054794,120]
[321430934,1712184654294,-500.0,0.00054794,120]
[321430935,1712184654304,-705.88,0.00054794,120]
[321430936,1712184654313,-500.0,0.00054794,120]
[321430937,1712184654323,-513.28,0.00054794,120]
[321430938,1712184654333,-665.67,0.00054794,120]
[321430939,1712184654342,-181.1628868,0.00054794,120]
[321430940,1712184654351,-519.24943692,0.00054794,120]
[321430941,1712184654360,-500.0,0.00054794,120]
[321430942,1712184654369,-500.0,0.00054794,120]
[321430943,1712184654380,-500.0,0.00054794,120]
[321430944,1712184654389,-500.0,0.00054794,120]
[321430945,1712184654399,-500.0,0.00054794,120]
[321430946,1712184654408,-598.78,0.00054794,120]
[321430947,1712184654418,-500.0,0.00054794,120]
[321430948,1712184654427,-510.21331703,0.00054794,2]
[321430949,1712184654437,-500.0,0.00054794,120]
[321430950,1712184654448,-506.77918107,0.00054794,120]
[321430951,1712184654458,-500.0,0.00054794,120]
[321430952,1712184654467,-2000.0,0.00054794,30]
[321430953,1712184654477,-500.0,0.00054794,120]
[321430954,1712184654488,-500.0,0.00054794,120]
[321430955,1712184654497,-500.0,0.00054794,120]
[321430956,1712184654506,-295.59102705,0.00054794,120]
[321430957,1712184654515,-624.62,0.00054794,120]
[321430958,1712184654524,-500.0,0.00054794,120]
[321430959,1712184654533,-500.0,0.00054794,120]
[321430960,1712184654542,-500.0,0.00054794,120]
[321430961,1712184654552,-500.0,0.00054794,120]
[321430962,1712184654561,-2828.46,0.00054794,120]
[321430963,1712184654570,-500.0,0.00054794,120]
[321430964,1712184654579,-500.0,0.00054794,120]
[321430965,1712184654590,-513.83440369,0.00054794,120]
[321430966,1712184654600,-500.000001,0.00054794,120]
[321430967,1712184654609,-507.70012087,0.00054794,120]
[321430968,1712184654619,-500.0,0.00054794,120]
[321430969,1712184654628,-500.0,0.00054794,120]
[321430970,1712184654637,-513.48225278,0.00054794,120]
[321430971,1712184654646,-500.0,0.00054794,120]
[321430972,1712184654657,-503.54126789,0.00054794,120]
[321430973,1712184654666,-544.38445311,0.00054794,120]
[321430974,1712184654676,-651.98,0.00054794,120]
[321430975,1712184654684,-485.13806164,0.00054794,120]
[321430976,1712184654693,-500.0,0.00054794,120]
[321430977,1712184654702,-506.15817152,0.00054794,120]
[321430978,1712184654711,-500.0,0.00054794,120]
[321430979,1712184654720,-500.0,0.00054794,120]
[321430980,1712184654729,-2396.76,0.00054794,120]
[321430981,1712184654739,-966.12,0.00054794,120]
[321430982,1712184654748,-500.0,0.00054794,120]
[321430983,1712184654758,-562.84,0.00054794,120]
[321430984,1712184654768,-500.0,0.00054794,120]
[321430985,1712184654777,-586.8,0.00054794,120]
[321430986,1712184654786,-500.0,0.00054794,120]
[321430987,1712184654795,-500.0,0.00054794,120]
[321430988,1712184654804,-504.60884603,0.00054794,120]
[321430989,1712184654813,-500.0,0.00054794,120]
[321430990,1712184654822,-500.0,0.00054794,120]
[321430991,1712184654831,-1000.0,0.00054794,30]
[321430992,1712184654840,-592.63,0.00054794,120]
[321430993,1712184654849,-522.33257389,0.00054794,120]
[321430994,1712184654858,-781.02,0.00054794,120]
[321430995,1712184654869,-1447.25,0.00054794,120]
[321430996,1712184654879,-516.70237293,0.00054794,120]
[321430997,1712184654888,-500.0,0.00054794,120]
[321430998,1712184654897,-502.21341036,0.00054794,120]
[321430999,1712184654909,-759.64,0.00054794,120]
[321431000,1712184654919,-230.41109752,0.00054794,120]
[321431001,1712184654929,-607.97,0.00054794,120]
[321431002,1712184654939,-500.0,0.00054794,120]
[321431003,1712184654949,-523.1846886,0.00054794,120]
[321431004,1712184654959,-5068.01,0.00054794,120]
[321431005,1712184654969,-2409.69,0.00054794,120]
[321431006,1712184654978,-500.0,0.00054794,120]
[321431007,1712184654988,-504.38099705,0.00054794,120]
[321431008,1712184654996,-511.4,0.00054794,120]
[321431009,1712184655005,-500.0,0.00054794,120]
[321431010,1712184655014,-590.49,0.00054794,120]
[321431011,1712184655025,-500.0,0.00054794,120]
[321431012,1712184655034,-521.5569587,0.00054794,120]
[321431013,1712184655041,-1811.47,0.00054794,120]
[321431014,1712184655049,-500.0,0.00054794,120]
[321431015,1712184655057,-5517.64,0.00054794,120]
[321431016,1712184655067,-500.0,0.00054794,120]
[321431017,1712184655076,-500.0,0.00054794,120]
[321431018,1712184655085,-513.26817017,0.00054794,120]
[321431019,1712184655095,-612.67,0.00054794,120]
[321431020,1712184655104,-4811.26,0.00054794,120]
[321431021,1712184655114,-6356.26,0.00054794,120]
[321431022,1712184655123,-500.0,0.00054794,120]
[321431023,1712184655132,-500.0,0.00054794,120]
[321431024,1712184655141,-500.0,0.00054794,120]
[321431025,1712184655151,-983.51,0.00054794,120]
[321431026,1712184655161,-500.0,0.00054794,120]
[321431027,1712184655170,-625.63,0.00054794,120]
[321431028,1712184655180,-500.0,0.00054794,120]
[321431029,1712184655189,-514.62328702,0.00054794,120]
[321431030,1712184655198,-500.0,0.00054794,120]
[321431031,1712184655208,-497.5252847,0.00054794,120]
[321431032,1712184655218,-504.58343045,0.00054794,120]
[321431033,1712184655229,-577.32777348,0.00054794,120]
[321431034,1712184655238,-505.92489313,0.00054794,120]
[321431035,1712184655247,-500.0,0.00054794,120]
[321431036,1712184655257,-500.0,0.00054794,120]
[321431037,1712184655267,-5199.26,0.00054794,120]
[321431038,1712184655278,-506.96908767,0.00054794,120]
[321431039,1712184655291,-1633.77,0.00054794,120]
[321431040,1712184655300,-500.0,0.00054794,120]
[321431041,1712184655310,-500.0,0.00054794,120]
[321431042,1712184655321,-3000.0,0.00054794,120]
[321431043,1712184655330,-500.0,0.00054794,120]
[321431044,1712184655339,-518.076014,0.00054794,120]
[321431045,1712184655349,-506.27276331,0.00054794,120]
[321431046,1712184655359,-500.0,0.00054794,120]
[321431047,1712184655369,-8574.73,0.00054794,120]
[321431048,1712184655379,-500.0,0.00054794,120]
[321431049,1712184655388,-500.0,0.00054794,120]
[321431050,1712184655397,-500.0,0.00054794,120]
[321431051,1712184655407,-515.31810621,0.00054794,120]
[321431052,1712184655417,-500.0,0.00054794,120]
[321431053,1712184655426,-512.32222869,0.00054794,120]
[321431054,1712184655436,-566.36,0.00054794,120]
[321431055,1712184655444,-500.0,0.00054794,120]
[321431056,1712184655454,-1264.03,0.00054794,120]
[321431057,1712184655464,-503.23163506,0.00054794,120]
[321431058,1712184655474,-12173.89,0.00054794,120]
[321431059,1712184655483,-828.35,0.00054794,120]
[321431060,1712184655494,-500.0,0.00054794,120]
[321431061,1712184655506,-500.0,0.00054794,120]
[321431062,1712184655516,-1518.73,0.00054794,120]
[321431063,1712184655526,-500.0,0.00054794,120]
[321431064,1712184655537,-633.39,0.00054794,120]
[321431065,1712184655547,-500.0,0.00054794,120]
[321431066,1712184655558,-500.0,0.00054794,120]
[321431067,1712184655567,-509.10376623,0.00054794,120]
[321431068,1712184655577,-776.16,0.00054794,120]
[321431069,1712184655587,-4668.01,0.00054794,120]
[321431070,1712184655598,-3777.44,0.00054794,120]
[321431071,1712184655609,-506.5283126,0.00054794,120]
[321431072,1712184655619,-500.0,0.00054794,120]
[321431073,1712184655629,-500.0,0.00054794,120]
[321431074,1712184655640,-506.95234454,0.00054794,120]
[321431075,1712184655653,-642.8,0.00054794,120]
[321431076,1712184655662,-507.7971728,0.00054794,120]
[321431077,1712184655674,-521.86471097,0.00054794,120]
[321431078,1712184655683,-512.7,0.00054794,120]
[321431079,1712184655694,-1763.3,0.00054794,7]
[321431080,1712184655703,-509.23777003,0.00054794,120]
[321431081,1712184655713,-649.8,0.00054794,120]
[321431082,1712184655725,-3118.27,0.00054794,120]
[321431083,1712184655734,-500.0,0.00054794,120]
[321431084,1712184655743,-500.0,0.00054794,120]
[321431085,1712184655755,-500.0,0.00054794,120]
[321431086,1712184655764,-1076.71,0.00054794,120]
[321431087,1712184655774,-13400.33,0.00054794,120]
[321431088,1712184655784,-13400.33,0.00054794,120]
[321431089,1712184655794,-500.0,0.00054794,120]
[321431090,1712184655804,-510.27,0.00054794,120]
[321431091,1712184655814,-13400.33,0.00054794,120]
[321431092,1712184655823,-13400.33,0.00054794,120]
[321431093,1712184655834,-1500.1,0.00054794,120]
[321431094,1712184655844,-1139.47,0.00054794,120]
[321431095,1712184655855,-13400.33,0.00054794,120]
[321431096,1712184655866,-355.35908407,0.00054794,120]
[321431097,1712184655876,-13400.33,0.00054794,120]
[321431098,1712184655885,-13400.33,0.00054794,120]
[321431099,1712184655895,-13400.33,0.00054794,120]
[321431100,1712184655905,-13400.33,0.00054794,120]
[321431101,1712184655915,-500.0,0.00054794,120]
[321431102,1712184655926,-13400.33,0.00054794,120]
[321431103,1712184655938,-13400.33,0.00054794,120]
[321431104,1712184655948,-13400.33,0.00054794,120]
[321431105,1712184655958,-500.0,0.00054794,120]
[321431106,1712184655968,-13400.33,0.00054794,120]
[321431107,1712184655978,-13400.33,0.00054794,120]
[321431108,1712184655987,-13400.33,0.00054794,120]
[321431109,1712184655997,-13400.33,0.00054794,120]
[321431110,1712184656006,-13400.33,0.00054794,120]
[321431111,1712184656016,-9956.43,0.00054794,120]
[321431112,1712184656025,-13400.33,0.00054794,120]
[321431113,1712184656034,-507.92757659,0.00054794,120]
[321431114,1712184656043,-13400.33,0.00054794,120]
[321431115,1712184656053,-500.0,0.00054794,120]
[321431116,1712184656063,-13400.33,0.00054794,120]
[321431117,1712184656072,-280.30826805,0.00054794,120]
[321431118,1712184656082,-13400.33,0.00054794,120]
[321431119,1712184656091,-500.0,0.00054794,120]
[321431120,1712184656101,-550.87,0.00054794,120]
[321431121,1712184656110,-521.25478602,0.00054794,120]
[321431122,1712184656120,-13400.33,0.00054794,120]
[321431123,1712184656129,-13400.33,0.00054794,120]
[321431124,1712184656139,-2295.65,0.00054794,120]
[321431125,1712184656148,-13400.43215114,0.00054794,120]
[321431126,1712184656159,-500.0,0.00054794,120]
[321431127,1712184656170,-500.0,0.00054794,120]
[321431128,1712184656180,-1199.55,0.00054794,120]
[321431129,1712184656191,-500.0,0.00054794,120]
[321431130,1712184656202,-529.930881,0.00054794,120]
[321431131,1712184656212,-510.57424273,0.00054794,120]
[321431132,1712184656224,-503.78792511,0.00054794,120]
[321431133,1712184656235,-500.0,0.00054794,120]
[321431134,1712184656244,-1294.81,0.00054794,120]
[321431135,1712184656255,-626.17,0.00054794,120]
[321431136,1712184656264,-500.0,0.00054794,120]
[321431137,1712184656274,-1754.37,0.00054794,120]
[321431138,1712184656286,-508.75863162,0.00054794,120]
[321431139,1712184656296,-1823.5,0.00054794,120]
[321431140,1712184656306,-500.0,0.00054794,120]
[321431141,1712184656316,-500.0,0.00054794,120]
[321431142,1712184656327,-8111.95,0.00054794,120]
[321431143,1712184656337,-490.53927365,0.00054794,120]
[321431144,1712184656346,-518.74892617,0.00054794,120]
[321431145,1712184656356,-858.08,0.00054794,120]
[321431146,1712184656370,-6076.91,0.00054794,120]
[321431147,1712184656381,-312.85701463,0.00054794,120]
[321431148,1712184656392,-500.0,0.00054794,120]
[321431149,1712184656403,-500.0,0.00054794,120]
[321431150,1712184656413,-500.0,0.00054794,120]
[321431151,1712184656424,-500.0,0.00054794,120]
[321431152,1712184656435,-533.61281662,0.00054794,120]
[321431153,1712184656447,-2138.23,0.00054794,120]
[321431154,1712184656458,-503.99004899,0.00054794,120]
[321431155,1712184656468,-558.23,0.00054794,120]
[321431156,1712184656477,-500.0,0.00054794,120]
[321431157,1712184656488,-3123.66,0.00054794,120]
[321431158,1712184656497,-500.0,0.00054794,120]
[321431159,1712184656507,-505.69730223,0.00054794,120]
[321431160,1712184656518,-1132.89,0.00054794,120]
[321431161,1712184656529,-507.301996,0.00054794,120]
[321431162,1712184656540,-502.67080247,0.00054794,120]
[321431163,1712184656550,-500.0,0.00054794,120]
[321431164,1712184656560,-6477.8,0.00054794,120]
[321431165,1712184656570,-503.77477784,0.00054794,120]
[321431166,1712184656580,-1702.96,0.00054794,120]
[321431167,1712184656589,-1082.06,0.00054794,120]
[321431168,1712184656599,-500.0,0.00054794,120]
[321431169,1712184656610,-500.0,0.00054794,120]
[321431170,1712184656619,-500.0,0.00054794,120]
[321431171,1712184656629,-833.36,0.00054794,120]
[321431172,1712184656639,-586.43,0.00054794,120]
[321431173,1712184656649,-500.28,0.00054794,120]
[321431174,1712184656659,-500.0,0.00054794,120]
[321431175,1712184656669,-503.07191444,0.00054794,120]
[321431176,1712184656678,-2171.28,0.00054794,120]
[321431177,1712184656688,-1791.39,0.00054794,120]
[321431178,1712184656697,-500.0,0.00054794,120]
[321431179,1712184656706,-1856.17,0.00054794,120]